Cogmind - Beta 17 @@@ ROGUE MODE // 2026.07.05 @ 16:13:27 Player: H3-MLN Result: Escaped! Performance ------------- Evolutions (9) 4500 Regions Visited (12) 2400 Robots Destroyed (248) 1240 Value Destroyed (9396) 9396 Prototype IDs (19) 380 Alien Tech Used (0) 0 Bonus (22484) 22484 TOTAL SCORE: 40400 Bonus ------- High Alert Combat Kills 2240 Follower Combat Kills 261 Prayed to X0-1V1 5000 Major X0-1V1 Interference 9000 Subatomizer Sterilization 3000 Win 3000 Friendly Fire -17 Cogmind --------- Core Integrity 12/1325 Matter 274/300 Energy 79/300 System Corruption 8% Temperature Cool (0) Movement Core (50) Location To Epsilon Eridani Parts ------- > --- POWER (2) -------- (None) > --- PROPULSION (8) --- (None) > --- UTILITY (11) ----- Terrain Scan Processor Core Analyzer Experimental Core Analyzer Improved Armor Integrity Analyzer X0-1V1's Piety Tracker > --- WEAPON (4) ------- (None) > --- INVENTORY (5) ---- Reinforced Quantum Reactor Advanced Actuator Array Experimental Reaction Control System Enhanced Nova Cannon Heavy Scimitar of Distortion Peak State ------------ > --- POWER ------------ Backup Power VII Light Quantum Reactor > --- PROPULSION ------- Improved VTOL Module Improved VTOL Module Impulse Thruster Impulse Thruster Field Propulsion Array Field Propulsion Array > --- UTILITY ---------- Terrain Scanner Terrain Scan Processor Terrain Scan Processor Improved Melee Analysis Suite Core Analyzer Experimental Core Analyzer Improved Armor Integrity Analyzer Transmission Jammer Improved Propulsion Shielding Graphene Brace X0-1V1's Piety Tracker > --- WEAPON ----------- Enhanced Nova Cannon Heavy Scimitar of Distortion Makeshift Spear Force Lance > --- INVENTORY -------- Advanced Actuator Array Experimental Reaction Control System Enhanced Force Rifle Heavy Rocket Launcher [Rating: 154] Favorites ----------- Power Light Antimatter Reactor Engine Improved Ion Engine Power Core Nuclear Core Reactor Light Antimatter Reactor Propulsion Armored Treads Treads Armored Treads Leg Aluminum Leg Wheel Centrium Wheel Hover Unit Antigrav System Flight Unit Improved VTOL Module Utility X0-1V1's Piety Tracker Device X0-1V1's Piety Tracker Storage High-capacity Storage Unit Processor Core Analyzer Hackware Hacking Suite Protection Light Regenerative Plating Weapon Heavy Assault Rifle Energy Gun Plasma Rifle Energy Cannon Phase Cannon Ballistic Gun Heavy Assault Rifle Ballistic Cannon Mass Driver Launcher Tesla Bomb Launcher Slashing Weapon Centrium Greatsword Piercing Weapon Makeshift Spear Special Melee Weapon Chaos Jack Build | -11 -10 -9 -8 -7 -6 -5 -4 -4 -4 -3 -2 -1 ------- Run | Yrd Mat Mat Mat Fac Fac Fac Fac Was Fac Res Res Acc Slots Evolved 18 | . . 2 2 2 2 2 2 . . 2 2 2 Power 1 | . . . . . . . 1 . . . . . Propulsion 7 | . . 1 . 2 1 . . . . 2 1 . Utility 8 | . . 1 1 . 1 1 1 . . . 1 2 Weapon 2 | . . . 1 . . 1 . . . . . . Parts Attached 168 | 7 8 13 26 5 24 26 19 8 4 . 7 21 Power 22 | 1 1 1 3 . 3 3 4 . 1 . . 5 Engine 12 | 1 1 1 2 . 3 2 1 . . . . 1 Core 5 | . . . 1 . . . 1 . . . . 3 Reactor 5 | . . . . . . 1 2 . 1 . . 1 Propulsion 45 | 2 4 4 6 1 8 5 6 4 . . 2 3 Treads 26 | . . 3 6 1 7 5 4 . . . . . Leg 7 | 2 4 1 . . . . . . . . . . Wheel 2 | . . . . . . . 2 . . . . . Hover 1 | . . . . . . . . . . . 1 . Flight 9 | . . . . . 1 . . 4 . . 1 3 Utility 60 | 2 2 5 9 2 9 6 5 3 3 . 3 11 Device 26 | 1 . 1 4 . 2 4 4 2 1 . 2 5 Storage 4 | 1 . 2 . . . . . . 1 . . . Processor 15 | . . . . 1 4 2 . 1 1 . 1 5 Hackware 2 | . . . . 1 1 . . . . . . . Protection 13 | . 2 2 5 . 2 . 1 . . . . 1 Artifact . | . . . . . . . . . . . . . Weapon 41 | 2 1 3 8 2 4 12 4 1 . . 2 2 Energy Gun 9 | . 1 1 1 . . 3 3 . . . . . Energy Cannon 5 | . . . 1 . 1 2 . . . . 1 . Ballistic Gun 19 | 2 . 2 6 1 3 4 1 . . . . . Ballistic Cannon 1 | . . . . . . 1 . . . . . . Launcher 2 | . . . . . . 2 . . . . . . Special Weapon . | . . . . . . . . . . . . . Impact Weapon . | . . . . . . . . . . . . . Slashing Weapon 2 | . . . . 1 . . . . . . . 1 Piercing Weapon 2 | . . . . . . . . 1 . . . 1 Special Melee Weapon 1 | . . . . . . . . . . . 1 . Unidentified Prototypes 10 | . . 1 3 . 1 3 . . . . 2 . Parts Lost 50 | . . 2 6 . . 11 11 . . . . 20 Power 6 | . . . 1 . . 1 1 . . . . 3 Propulsion 20 | . . 1 . . . 4 7 . . . . 8 Utility 14 | . . . 3 . . 3 1 . . . . 7 Weapon 10 | . . 1 2 . . 3 2 . . . . 2 Highest Loss Streak 14 | . . 1 3 . . 6 2 . . . . 14 To Critical Strikes . | . . . . . . . . . . . . . Average Backups 15 | 2 7 12 19 18 19 18 17 9 4 5 4 4 Power . | . . . . . . . . . . . . . Propulsion 4 | 1 1 2 5 4 5 6 4 1 . . . . Utility 5 | . 4 4 6 6 6 5 4 2 1 2 . 1 Weapon 6 | . 1 5 7 7 7 6 8 5 3 3 4 2 Tool/Special . | . . . . . . . . . . . . . Unused Backups 39 | . 5 5 6 . 8 4 6 . 1 . 1 3 Power 3 | . . 1 . . 1 . . . . . . 1 Propulsion 12 | . 3 1 . . 2 4 2 . . . . . Utility 11 | . 1 2 2 . 2 . 1 . . . 1 2 Weapon 13 | . 1 1 4 . 3 . 3 . 1 . . . Tool/Special . | . . . . . . . . . . . . . Average Slot Usage (%) 93 | . 100 94 99 99 98 94 91 74 76 71 77 71 Engine 5 | . 14 11 4 7 6 3 4 . . . . . Reactor 1 | . . . . . . 1 3 10 10 9 8 2 Treads 23 | . . 15 26 37 39 33 23 1 . . . . Leg 3 | . 28 12 . . . . . . . . . . Flight 2 | . . . . . . . . 16 21 19 17 17 Device 12 | . 4 9 16 7 7 12 19 19 17 14 16 14 Storage 6 | . 14 11 9 7 6 5 5 2 . . . . Processor 5 | . . . . 3 9 5 5 7 11 14 12 20 Protection 7 | . 9 11 10 7 6 4 5 5 5 4 4 2 Energy Gun 4 | . 10 7 9 . . 2 7 4 . . . . Energy Cannon 1 | . . . . . 1 4 . . . . . . Ballistic Gun 13 | . 17 14 17 22 18 12 11 2 . . . . Peak Build Rating 154 | 7 9 33 45 56 81 104 121 121 118 119 145 154 Average Rating 69 | 4 8 26 41 51 69 96 109 97 114 118 136 119 On Entrance 70 | . 7 8 33 45 53 76 97 100 115 118 119 145 Avg Prop Armor Cover (%) 6 | . . 6 . . 9 9 9 . . . 3 2 Naked Turns . | . . . . . . . . . . . . . Heaviest Build 126 | 12 16 57 68 63 95 101 126 88 40 38 40 51 Greatest Support 138 | 20 20 66 66 104 138 120 114 40 40 40 40 54 Greatest Overweight (x) 5 | . . 2 1 . . . 5 2 . . 1 2 Average Overweight (x) . | . . . . . . . . . . . . . Largest Inventory Capacity 20 | 8 8 20 20 20 20 20 20 20 5 5 5 5 Average Capacity 16 | 6 8 14 20 20 20 20 20 9 5 5 5 5 Most Carried 20 | 4 8 20 20 20 20 20 20 20 5 5 5 5 Average Carried 16 | 2 7 13 19 18 19 19 19 7 4 5 4 4 Final Capacity 20 | 8 8 20 20 20 20 20 20 5 5 5 5 5 Final Carried 20 | 4 8 20 20 20 20 19 20 5 5 5 5 5 Class Distribution -------------------- 28% | Scavenger-Gunner 20% | Mutant 16% | Tank 11% | Gunner 6% | Scavenger-Tank 5% | Sprinter 5% | Skirmisher 4% | Scavenger-Sprinter Dominant Class ---------------- Mutant | -10/Materials Mutant | -9/Materials Tank | -8/Materials Scavenger-Gunner | -7/Factory Gunner | -6/Factory Scavenger-Gunner | -5/Factory Scavenger-Gunner | -4/Factory Scavenger-Gunner | -4/Waste Sprinter | -4/Factory Sprinter | -3/Research Sprinter | -2/Research Scavenger-Sprinter | -1/Access Resources | -11 -10 -9 -8 -7 -6 -5 -4 -4 -4 -3 -2 -1 ----------- Run | Yrd Mat Mat Mat Fac Fac Fac Fac Was Fac Res Res Acc Matter Collected 6893 | 310 365 542 1392 75 958 1078 1663 108 48 . 10 344 Remotely 137 | . . . . . . . 137 . . . . . Salvage Created 11890 | 77 633 572 1892 75 1314 1857 4783 . 78 . . 609 Parts 557 | 3 44 38 96 4 58 92 182 . 3 . . 37 Haulers Intercepted 10 | . 2 2 3 . 1 1 1 . . . . . Recyclers Shooed 16 | . . . . . . 2 14 . . . . . Parts Field Recycled . | . . . . . . . . . . . . . Retrieved Matter . | . . . . . . . . . . . . . Parts Self-Destructed . | . . . . . . . . . . . . . Prevented . | . . . . . . . . . . . . . Parts Restored . | . . . . . . . . . . . . . Kills | -11 -10 -9 -8 -7 -6 -5 -4 -4 -4 -3 -2 -1 ------- Run | Yrd Mat Mat Mat Fac Fac Fac Fac Was Fac Res Res Acc Combat Hostiles Destroyed 159 | . 16 6 32 1 17 26 54 . 3 . . 4 Melee 7 | . . . . . . . . . 3 . . 4 Guns 112 | . 16 6 31 1 12 13 33 . . . . . Cannons 7 | . . . . . 3 4 . . . . . . AOE 25 | . . . . . 1 8 16 . . . . . Classes Destroyed 17 | 2 3 4 6 . 1 . 1 . . . . . Worker 18 | . . 3 3 . 1 3 5 . . . . 3 Builder 22 | . . . 1 . 2 3 13 . . . . 3 Tunneler 4 | 1 1 . . . 1 . 1 . . . . . Hauler 10 | . 2 2 3 . 1 1 1 . . . . . Recycler 18 | 1 . . 3 . 1 2 10 . . . . 1 Mechanic 2 | . . . 1 . . . 1 . . . . . Operator 6 | . . 2 2 . . 1 1 . . . . . Watcher 9 | . . 2 2 . . 2 2 . . . . 1 Swarmer 31 | . 6 . 6 . 1 . 15 . 3 . . . Grunt 76 | . 10 1 15 . 8 17 25 . . . . . Duelist 1 | . . . 1 . . . . . . . . . Sentry 19 | . . 5 6 1 2 3 2 . . . . . Specialist 4 | . . . 2 . 2 . . . . . . . Hunter 15 | . . . 1 . . 4 8 . . . . 2 Programmer 7 | . . . . . 2 2 1 . . . . 2 Heavy 4 | . . . 1 . 2 . 1 . . . . . Fireman 2 | . . . . . . . 2 . . . . . Best Kill Streak 26 | 1 4 4 8 1 4 9 26 . 3 . . 3 Combat Bots Only 15 | . 3 2 7 1 3 9 15 . 3 . . 2 Max Kills in Single Turn 5 | 1 2 2 2 1 2 4 5 . 1 . . 2 Gunslinging 1 | . 1 1 1 . . . 1 . . . . . Exploded 4 | . . . . . 1 3 4 . . . . . Melee 1 | . . . . . . . . . 1 . . 1 Uniques/NPCs Destroyed . | . . . . . . . . . . . . . Combat | -11 -10 -9 -8 -7 -6 -5 -4 -4 -4 -3 -2 -1 -------- Run | Yrd Mat Mat Mat Fac Fac Fac Fac Was Fac Res Res Acc Hostile Shots Fired 1301 | . 58 32 199 27 107 231 363 . 9 . 41 234 Missed 443 | . 17 7 59 9 39 77 111 . 1 . 21 102 Hits 858 | . 41 25 140 18 68 154 252 . 8 . 20 132 Melee 7 | . . . 4 . . 3 . . . . . . Projectile 851 | . 41 25 136 18 68 151 252 . 8 . 20 132 Critical Strikes 45 | . . 2 13 . 1 13 10 . . . 2 4 Actively Blocked 17 | . . . . . . 3 9 . . . 2 3 Damage Taken 15535 | . 441 362 2291 120 1184 3427 4231 . 100 . 443 2936 Core 2348 | . 27 58 179 17 109 253 320 . . . 72 1313 Absorbed by Shields . | . . . . . . . . . . . . . Redirected to Shielding 100 | . . . . . . . . . . . . 100 Ignored by Resistances 1241 | . . 6 144 12 179 88 581 . 15 . 34 182 Regen/Repaired (Parts) 1234 | . . . . 15 11 175 750 18 80 4 142 39 Core Remaining (%) 73 | 100 44 100 41 96 81 65 . . 85 100 93 . Volleys Fired 470 | 10 47 33 106 3 64 83 113 . . . 4 7 Largest 4 | 2 2 2 3 3 3 4 4 . . . 1 1 Hottest 232 | 40 76 112 143 69 145 232 229 . . . 120 120 Shots Fired 1263 | 20 94 66 301 9 191 230 341 . . . 4 7 Gun 1119 | 20 94 66 301 9 172 138 319 . . . . . Cannon 117 | . . . . . 19 85 2 . . . 4 7 Launcher 27 | . . . . . . 7 20 . . . . . Special . | . . . . . . . . . . . . . Kinetic 858 | 20 49 34 230 9 172 136 208 . . . . . Thermal 363 | . 45 32 71 . 19 72 113 . . . 4 7 Explosive 17 | . . . . . . 7 10 . . . . . Electromagnetic 25 | . . . . . . 15 10 . . . . . Robot Hit Streak 20 | 4 18 9 20 2 19 8 15 . . . . . Robot Miss Streak 6 | 2 4 2 6 1 6 6 5 . . . . . Penetration Max 1 | . . . . . . 1 1 . . . . . Secondary Targets 19 | . 3 1 10 . . . 5 . . . . . Max Gunslinging Chain 1 | . 1 1 1 . . . 1 . . . . . Shots Hit Robots 805 | 13 60 43 219 5 117 104 208 . 4 . 3 29 Core Hits 500 | 4 27 22 120 2 45 82 182 . 2 . 1 13 Critical Kills 13 | . . . . . 2 2 9 . . . . . Critical Parts Destroyed 11 | . . . 1 . 2 3 5 . . . . . Critical Strikes 40 | . 3 2 2 . 4 6 21 . 1 . . 1 Burn 14 | . 3 2 1 . . 1 7 . . . . . Destroy 24 | . . . 1 . 4 5 14 . . . . . Sever 1 | . . . . . . . . . 1 . . . Impale 1 | . . . . . . . . . . . . 1 Melee Attacks 101 | . . . . 1 . . . . 15 . 24 61 Impact . | . . . . . . . . . . . . . Slashing 58 | . . . . 1 . . . . 12 . 8 37 Piercing 43 | . . . . . . . . . 3 . 16 24 Sneak Attacks 7 | . . . . . . . . . . . . 7 Combat Hostiles . | . . . . . . . . . . . . . Follow-up Attacks 4 | . . . . . . . . . . . . 4 Damage Inflicted 23912 | 114 871 655 3370 71 2600 4689 9315 . 279 . 5 1943 Guns 14687 | 114 871 655 3370 71 2181 1421 6004 . . . . . Cannons 1667 | . . . . . 408 1259 . . . . . . Explosions 5581 | . . . . . . 2009 3277 . . . . 295 Melee 1932 | . . . . . . . . . 279 . 5 1648 Ramming 45 | . . . . . 11 . 34 . . . . . Kinetic 11512 | 114 439 365 2438 71 2243 1428 4414 . . . . . Thermal 5164 | . 432 290 932 . 346 1309 1826 . . . . 29 Explosive 3368 | . . . . . . 1611 1634 . . . . 123 Electromagnetic 1891 | . . . . . . 341 1407 . . . . 143 Impact . | . . . . . . . . . . . . . Slashing 1709 | . . . . . . . . . 279 . . 1430 Piercing 223 | . . . . . . . . . . . 5 218 Highest Corruption 9 | . . 2 . . 1 1 2 8 8 . 9 8 Average Corruption 1 | . . 1 . . 1 1 1 6 8 . 6 2 Corruption Purged . | . . . . . . . . . . . . . Corruption Blocked . | . . . . . . . . . . . . . Effects 44 | . . 10 . . 5 11 6 . 3 . 4 5 Message Errors 12 | . . 4 . . 2 1 2 . 1 . . 2 Matter Fused 10 | . . 1 . . 1 2 2 . . . 4 . Heat Flow Errors 7 | . . 1 . . 1 4 1 . . . . . Energy Discharges 5 | . . 2 . . 1 . 1 . 1 . . . Parts Rejected 1 | . . . . . . 1 . . . . . . Data Loss (minor) 5 | . . 1 . . . 1 . . 1 . . 2 Misfires 1 | . . . . . . 1 . . . . . . Alerts 2 | . . 1 . . . . . . . . . 1 Weapon Failures 1 | . . . . . . 1 . . . . . . Overload Shots 1 | . . . . . . . . . . . 1 . Overflow Damage 770 | . . . . . 16 66 57 . 52 . . 579 Projectiles 21 | . . . . . 16 5 . . . . . . Explosions 136 | . . . . . . 61 57 . . . . 18 Melee 613 | . . . . . . . . . 52 . . 561 Knockbacks 2 | . . . . . 1 1 . . . . . . Impact . | . . . . . . . . . . . . . Kinetic 2 | . . . . . 1 1 . . . . . . Secondary . | . . . . . . . . . . . . . Self-Inflicted Damage 390 | . . . . . . 107 82 . . . . 201 Shots 9 | . . . . . . 2 4 . . . . 3 Rammed 2 | . . . . . 1 . 1 . . . . . Targets Rammed 3 | . . . . . 1 . 2 . . . . . Kicked . | . . . . . . . . . . . . . Crushed 1 | . . . . . . . 1 . . . . . Highest Temperature 531 | . 171 531 139 . 235 392 363 . . . 108 64 Average Temperature 90 | . 59 162 58 . 73 92 115 . . . 45 22 Received Heat Transfer 3147 | . 165 126 720 36 225 893 703 . . . 18 261 Effects 8 | . . 8 . . . . . . . . . . Matter Decay 2 | . . 2 . . . . . . . . . . Short Circuit 1 | . . 1 . . . . . . . . . . Damage (minor) 1 | . . 1 . . . . . . . . . . Damage (major) 4 | . . 4 . . . . . . . . . . Siege Activations . | . . . . . . . . . . . . . Martial Activations . | . . . . . . . . . . . . . Shielding Activations . | . . . . . . . . . . . . . Robots Disrupted 1 | . . . . . . 1 . . . . . . Combat Hostiles 1 | . . . . . . 1 . . . . . . Robots Corrupted 6 | . . . . . . 1 5 . . . . . Combat Hostiles 6 | . . . . . . 1 5 . . . . . Parts Fried 12 | . . . . . . 1 11 . . . . . Impact Corruptions . | . . . . . . . . . . . . . Robots Melted . | . . . . . . . . . . . . . Combat Hostiles . | . . . . . . . . . . . . . Parts Melted 15 | . 2 . . . 4 2 7 . . . . . Heat Transferred 9692 | . 1295 888 1511 . 407 1575 3966 . . . . 50 Parts Sabotaged . | . . . . . . . . . . . . . Parts Stolen . | . . . . . . . . . . . . . Parts Stripped . | . . . . . . . . . . . . . Power Chain Reactions 1 | . . . . . . . 1 . . . . . Alert | -11 -10 -9 -8 -7 -6 -5 -4 -4 -4 -3 -2 -1 ------- Run | Yrd Mat Mat Mat Fac Fac Fac Fac Was Fac Res Res Acc Maximum Alert Level 5 | . 1 . 1 . 1 3 5 2 2 1 . 2 Low Security (%) 48 | 100 92 100 24 100 65 27 . . . . 100 24 Level 1 25 | . 7 . 75 . 34 1 . . . 100 . 73 Level 2 12 | . . . . . . 31 42 100 100 . . 2 Level 3 6 | . . . . . . 39 4 . . . . . Level 4 5 | . . . . . . . 46 . . . . . Level 5 . | . . . . . . . 7 . . . . . High Security . | . . . . . . . . . . . . . Max Security . | . . . . . . . . . . . . . Sterilizations 1 | . . 1 . . . . . . . . . . Peak Influence 1986 | 5 276 149 378 168 353 1053 1986 695 523 274 191 419 Initial 695 | . . 113 16 168 35 163 469 695 472 274 153 108 Average 351 | 1 103 78 257 113 161 611 1003 685 461 274 171 243 Influence Increases 7495 | 10 471 362 972 66 920 1491 2101 . 121 . 188 793 Destroy 0b10 Robot/C 3300 | . 320 120 640 20 420 560 1080 . 60 . . 80 Destroy 0b10 Robot/NC 445 | 10 15 45 75 . 30 60 170 . . . . 40 Destroy Leader 758 | . 64 58 170 10 122 116 186 . 10 . . 22 Allied During Kill 46 | . . . 6 8 18 14 . . . . . . Successful Hack 231 | . 20 4 46 12 28 . 14 . 6 . 50 51 Select Force Hacks 80 | . 50 30 . . . . . . . . . . Disable Machine 915 | . . . . 15 75 525 165 . 15 . 30 90 Anti-Garrison Action 400 | . . . . . 200 . 200 . . . . . Destroy Structure 646 | . 2 1 5 1 12 216 196 . . . 48 165 Partial Spotted 60 | . . . . . . . . . . . 45 15 Lose Combat Pursuer 510 | . . . 30 . 15 . 90 . 30 . 15 330 Miscellaneous 104 | . . 104 . . . . . . . . . . Influence Decreases 7084 | 10 203 590 640 364 661 865 1074 1311 273 249 281 563 Entered New Map 3019 | . . 155 24 204 39 170 490 1291 203 249 121 73 Time Decay 3404 | 10 203 415 556 160 562 514 464 20 70 . 160 270 Lost Part 500 | . . 20 60 . . 110 110 . . . . 200 Lost Ally 110 | . . . . . 60 20 10 . . . . 20 Purge Threat 51 | . . . . . . 51 . . . . . . Squads Dispatched 64 | . 3 2 7 2 13 7 18 . . . 5 7 Investigation 18 | . 2 2 1 2 2 2 5 . . . 1 1 Extermination 13 | . . . . . 4 1 2 . . . 2 4 Reinforcement 25 | . 1 . 6 . 4 3 7 . . . 2 2 Assault 5 | . . . . . . 1 4 . . . . . Garrison 3 | . . . . . 3 . . . . . . . Intercept . | . . . . . . . . . . . . . Searches Triggered . | . . . . . . . . . . . . . Construction Impeded 3 | . . . . . 1 . 2 . . . . . Haulers Reinforced 1 | . . . . . . 1 . . . . . . Active Scanning Responses . | . . . . . . . . . . . . . Cargo Convoy Interrupts 1 | . . . . . 1 . . . . . . . Stealth | -11 -10 -9 -8 -7 -6 -5 -4 -4 -4 -3 -2 -1 --------- Run | Yrd Mat Mat Mat Fac Fac Fac Fac Was Fac Res Res Acc Distress Signals 10 | . 2 1 3 . . . 3 . . . 1 . Communications Jammed 61 | . . . . . 1 . 46 . 3 . 2 9 Distress Signals 60 | . . . . . . . 46 . 3 . 2 9 Times Spotted 281 | . 21 12 46 1 22 42 72 5 8 . 18 34 Peak Tracking Total 12 | . 4 3 6 1 3 7 9 5 4 . 12 9 Tactical Retreats 17 | . . . 2 . 1 . 4 . 1 . 1 8 Traps | -11 -10 -9 -8 -7 -6 -5 -4 -4 -4 -3 -2 -1 ------- Run | Yrd Mat Mat Mat Fac Fac Fac Fac Was Fac Res Res Acc Traps Triggered 13 | . 1 2 1 . 1 5 2 . . . . 1 Indirectly 1 | . . . . . . . 1 . . . . . Trap Hack Attempts . | . . . . . . . . . . . . . Triggered . | . . . . . . . . . . . . . Disarmed . | . . . . . . . . . . . . . Reprogrammed . | . . . . . . . . . . . . . Reused . | . . . . . . . . . . . . . Traps Extracted . | . . . . . . . . . . . . . Installed . | . . . . . . . . . . . . . Triggered . | . . . . . . . . . . . . . Machines | -11 -10 -9 -8 -7 -6 -5 -4 -4 -4 -3 -2 -1 ---------- Run | Yrd Mat Mat Mat Fac Fac Fac Fac Was Fac Res Res Acc Machines Disabled 61 | . . . . 1 5 35 11 . 1 . 2 6 Max in Single Turn 13 | . . . . 1 1 13 1 . 1 . 1 1 Garrison Access 2 | . . . . . 1 . 1 . . . . . Energy Cycler 1 | . . . . . . . . . . . . 1 Machines Repaired . | . . . . . . . . . . . . . Machines Dismantled . | . . . . . . . . . . . . . Machines Sabotaged 1 | . 1 . . . . . . . . . . . Overloaded Fab Kills . | . . . . . . . . . . . . . Hacking | -11 -10 -9 -8 -7 -6 -5 -4 -4 -4 -3 -2 -1 --------- Run | Yrd Mat Mat Mat Fac Fac Fac Fac Was Fac Res Res Acc Machines Accessed 50 | . 3 3 7 3 6 8 6 . 2 . 7 5 Terminals 26 | . 3 1 5 2 3 5 . . . . 4 3 Fabricators 7 | . . . . 1 2 1 2 . . . . 1 Repair Stations 6 | . . . . . . . 3 . 1 . 1 1 Recycling Units 4 | . . 1 . . . 1 . . 1 . 1 . Scanalyzers 4 | . . 1 2 . . . . . . . 1 . Garrison Access 3 | . . . . . 1 1 1 . . . . . Total Hacks 125 | . 9 11 24 9 14 17 12 . 4 . 15 10 Successful 57 | . 5 8 14 3 6 3 6 . 3 . 7 2 Failed 66 | . 4 2 9 6 8 14 6 . 1 . 8 8 Catastrophic 12 | . . . 1 . . 3 3 . 1 . 3 1 Database Lockouts 2 | . . 1 1 . . . . . . . . . Manual 40 | . 10 2 6 . 4 5 4 . . . 7 2 Terminals 69 | . 9 4 15 7 7 11 . . . . 10 6 Fabricators 13 | . . . . 2 4 2 3 . . . . 2 Repair Stations 13 | . . . . . . . 7 . 2 . 2 2 Recycling Units 9 | . . 2 . . . 3 . . 2 . 2 . Scanalyzers 15 | . . 5 9 . . . . . . . 1 . Garrison Access 6 | . . . . . 3 1 2 . . . . . Terminal Hacks 15 | . 4 1 5 1 2 1 . . . . . 1 Part Schematic 1 | . 1 . . . . . . . . . . . Robot Schematic 1 | . 1 . . . . . . . . . . . Robot Analysis 2 | . 2 . . . . . . . . . . . Prototype ID Bank 2 | . . . 2 . . . . . . . . . Branch Access Points 2 | . . . 1 1 . . . . . . . . Unreport Threat 1 | . . . . . . 1 . . . . . . Locate Traps 2 | . . 1 1 . . . . . . . . . Hauler Manifests 1 | . . . . . 1 . . . . . . . Zone Layout 3 | . . . 1 . 1 . . . . . . 1 Fabricator Hacks 7 | . . . . 2 2 . 2 . . . . 1 Load Schematic 3 | . . . . 1 1 . 1 . . . . . Build 4 | . . . . 1 1 . 1 . . . . 1 Repair Station Hacks 5 | . . . . . . . 1 . 2 . 2 . Scan Component 3 | . . . . . . . 1 . 1 . 1 . Repair 2 | . . . . . . . . . 1 . 1 . Recycling Unit Hacks 6 | . . 2 . . . 2 . . 1 . 1 . Report Inventory 4 | . . 1 . . . 1 . . 1 . 1 . Retrieve Components 2 | . . 1 . . . 1 . . . . . . Scanalyzer 9 | . . 3 6 . . . . . . . . . Insert Component 3 | . . 1 2 . . . . . . . . . Analyze 3 | . . 1 2 . . . . . . . . . Retrieve Study 3 | . . 1 2 . . . . . . . . . Garrison Access Hacks . | . . . . . . . . . . . . . Unauthorized Hacks 15 | . 1 2 3 . 2 . 3 . . . 4 . Terminals 9 | . 1 1 3 . . . . . . . 4 . Botnet 3 | . . . 1 . . . . . . . 2 . Operators 1 | . . . 1 . . . . . . . . . Skim 3 | . . . 1 . . . . . . . 2 . Sabotage 2 | . 1 1 . . . . . . . . . . Fabricators 1 | . . . . . 1 . . . . . . . Fabnet 1 | . . . . . 1 . . . . . . . Repair Stations 2 | . . . . . . . 2 . . . . . Patch 2 | . . . . . . . 2 . . . . . Recycling Units . | . . . . . . . . . . . . . Scanalyzers 1 | . . 1 . . . . . . . . . . Extract 1 | . . 1 . . . . . . . . . . Garrison Access 2 | . . . . . 1 . 1 . . . . . Jam 2 | . . . . . 1 . 1 . . . . . Data Cores Recovered 1 | . . . . . . 1 . . . . . . Used 1 | . . . . . . 1 . . . . . . Hacking Detections 49 | . 3 2 7 3 6 8 6 . 2 . 7 5 Full Trace Events 7 | . . . . 2 1 . 2 . . . 1 1 Feedback Events 1 | . . . . . . . 1 . . . . . Corruption 1 | . . . . . . . 1 . . . . . Feedback Blocked . | . . . . . . . . . . . . . Robot Schematics Acquired 1 | . 1 . . . . . . . . . . . Robots Built 1 | . . . . . . . 1 . . . . . Authchips . | . . . . . . . . . . . . . Time 121 | . . . . . 81 . 40 . . . . . Total Robot Build Rating 1 | . . . . . . . 1 . . . . . Part Schematics Acquired 7 | . 1 4 2 . . . . . . . . . Parts Built 3 | . . . . 2 . . . . . . . 1 Authchips . | . . . . . . . . . . . . . Time 116 | . . . . 42 . . . . . . . 74 Total Part Build Rating 17 | . . . . 8 . . . . . . . 9 Part Studies Acquired 3 | . . 1 2 . . . . . . . . . Parts Repaired 2 | . . . . . . . . . 1 . 1 . Time 151 | . . . . . . . . . 89 . 62 . Parts Recycled . | . . . . . . . . . . . . . Recycled Matter . | . . . . . . . . . . . . . Retrieved Matter . | . . . . . . . . . . . . . Retrieved Components 13 | . . 4 . . . 9 . . . . . . Parts Scanalyzed 3 | . . 1 2 . . . . . . . . . Part Schematics Acquired 3 | . . 1 2 . . . . . . . . . Parts Damaged . | . . . . . . . . . . . . . Bothacking | -11 -10 -9 -8 -7 -6 -5 -4 -4 -4 -3 -2 -1 ------------ Run | Yrd Mat Mat Mat Fac Fac Fac Fac Was Fac Res Res Acc Used RIF Installer . | . . . . . . . . . . . . . Robots Hacked . | . . . . . . . . . . . . . Non-combat . | . . . . . . . . . . . . . Combat . | . . . . . . . . . . . . . Robot Hacks Applied . | . . . . . . . . . . . . . Relay Couplers Released 1 | . . . . . . . 1 . . . . . Machine Destruction 1 | . . . . . . . 1 . . . . . Fabnet Peak Effective % 3 | . . . . . . 3 1 1 1 . . . Robots Rewired 1 | . . . . . . 1 . . . . . . Allies Hacked . | . . . . . . . . . . . . . Hacks Repelled . | . . . . . . . . . . . . . Allies | -11 -10 -9 -8 -7 -6 -5 -4 -4 -4 -3 -2 -1 -------- Run | Yrd Mat Mat Mat Fac Fac Fac Fac Was Fac Res Res Acc Total Allies 6 | . . . 1 3 . 1 1 . . . . . Largest Group 3 | . . . 1 3 3 1 . . . . . . Highest-Rated Group 123 | . . . 57 123 123 42 . . . . . . Highest-Rated Ally 57 | . . . 57 41 41 42 . . . . . . Total Orders 5 | . . . . . . . . . . . . 5 ROAM 2 | . . . . . . . . . . . . 2 EXPLORE 3 | . . . . . . . . . . . . 3 Ally Attacks 20 | . . . 1 2 14 3 . . . . . . Total Damage 647 | . . . 39 39 500 69 . . . . . . Kills 6 | . . . . . 4 2 . . . . . . Allies Corrupted 1 | . . . . . . . . . . . . 1 Allies Melted . | . . . . . . . . . . . . . X0-1V1 Amusement Gains 331 | . 19 92 30 . 10 50 50 . . . 11 69 Good Acts 69 | . . 2 9 2 9 4 9 3 6 2 10 13 Bad Acts 56 | . . 4 5 . 5 13 9 . . . 5 15 Intel | -11 -10 -9 -8 -7 -6 -5 -4 -4 -4 -3 -2 -1 ------- Run | Yrd Mat Mat Mat Fac Fac Fac Fac Was Fac Res Res Acc Active Infowar (turns) 3297 | 10 205 . 40 . 577 566 1028 . 156 11 322 382 Sensors 405 | . . . . . . . . . . . 301 104 Terrain 1052 | . . . . . 510 224 . . . . . 318 Traps 40 | . . . 40 . . . . . . . . . Seismic 215 | 10 205 . . . . . . . . . . . T.N.C. 215 | . . . . . 215 . . . . . . . Jamming 2196 | . . . . . 11 342 1028 . 156 11 322 326 Robot Analysis Total 2 | . 2 . . . . . . . . . . . Derelict Logs Recovered . | . . . . . . . . . . . . . Drone Launches 4 | . . . . . . . . . . . . 4 Drone Recoveries 2 | . . . . . . . . . . . . 2 Exploration | -11 -10 -9 -8 -7 -6 -5 -4 -4 -4 -3 -2 -1 ------------- Run | Yrd Mat Mat Mat Fac Fac Fac Fac Was Fac Res Res Acc Turns Passed 9238 | 129 638 1052 1695 335 1674 1408 1173 58 156 11 322 587 Spaces Moved 5750 | 75 319 492 618 176 855 717 404 90 237 35 684 1048 Core 110 | 6 . . . . . . . . . . . 104 Treads 3016 | . . 310 618 176 855 717 340 . . . . . Legs 570 | 69 319 182 . . . . . . . . . . Wheels 64 | . . . . . . . 64 . . . . . Hover . | . . . . . . . . . . . . . Flight 1990 | . . . . . . . . 90 237 35 684 944 Fastest Speed 23 | 50 120 120 145 160 145 145 136 28 28 28 28 23 Average Speed 113 | 114 120 179 188 160 153 147 182 36 28 28 28 29 Slowest Speed 260 | 120 120 260 214 160 155 153 250 178 28 28 103 150 Overloaded Moves . | . . . . . . . . . . . . . Propulsion Burnouts . | . . . . . . . . . . . . . Robots Hopped 21 | . . . . . . . . 4 . . 10 7 Potential Cave-ins . | . . . . . . . . . . . . . Cave-ins Triggered . | . . . . . . . . . . . . . Exploration Rate (%) 27 | 4 43 39 59 6 25 29 14 76 4 1 22 35 Regions Visited 12 Branch Regions . Pre-discovered Areas . | . . . . . . . . . . . . . Known Exits Taken 4 | . . . . . . 1 . . 1 1 1 . Unknown Exits Taken 6 | 1 1 1 1 1 1 . . . . . . . Scrap Searched . | . . . . . . . . . . . . . Spaces Dug 72 | . . . . . 1 5 35 . . . 15 16 Terrain Destroyed 294 | . . . . . 6 113 100 . . . 16 59 Melee 27 | . . . . . . . . . . . 13 14 Projectile 61 | . . . . . 6 29 21 . . . 3 2 AOE 205 | . . . . . . 84 78 . . . . 43 Terrain Rammed . | . . . . . . . . . . . . . Walls Destroyed . | . . . . . . . . . . . . . Machines Disabled . | . . . . . . . . . . . . . Actions | -11 -10 -9 -8 -7 -6 -5 -4 -4 -4 -3 -2 -1 --------- Run | Yrd Mat Mat Mat Fac Fac Fac Fac Was Fac Res Res Acc Total 7430 | 96 487 600 921 219 1096 913 633 116 303 36 766 1244 Wait 604 | 1 89 27 120 28 95 22 41 . 44 . 50 87 Move 5699 | 74 318 491 617 175 854 716 404 83 236 34 663 1034 Hop 18 | . . . . . . . . 2 . . 10 6 Pick Up 129 | 4 11 22 22 3 17 16 15 7 2 . 5 5 Fast Attach 78 | 7 1 5 9 1 8 8 10 3 2 . 6 18 Attach 60 | . . 3 11 2 6 15 8 6 1 . . 8 Detach 17 | . . . 1 . 1 3 3 . 1 1 . 7 Swap 105 | . 7 5 13 4 21 27 21 . 1 . 4 2 Drop 157 | . 14 14 22 2 29 14 16 15 4 1 5 21 Fire 470 | 10 47 33 106 3 64 83 113 . . . 4 7 Melee 80 | . . . . 1 . . . . 12 . 19 48 Ram . | . . . . . . . . . . . . . Kick . | . . . . . . . . . . . . . Crush 3 | . . . . . 1 . 2 . . . . . Escape Stasis . | . . . . . . . . . . . . . Rewire 9 | . . . . . . 9 . . . . . . Trap . | . . . . . . . . . . . . . Miscellaneous 1 | . . . . . . . . . . . . 1 Route ------- -11/Scrapyard -10/Materials (discovered 2 exits: *Mat / [*Sub]) -9/Materials -8/Materials -7/Factory (discovered 3 exits: *Fac / Low x2) -6/Factory (discovered 3 exits: *Fac / *Low x2) -5/Factory (discovered 2 exits: *Fac / *Upp) -4/Factory -4/Waste -4/Factory (discovered 2 exits: *Res x2) -3/Research -2/Research (discovered 2 exits: *Acc / Qua) -1/Access (discovered 2 exits: *Sur / Com) To Epsilon Eridani History --------- Turn | Location | Event 6 | -11/Scrapyard | Discovered new exit (range 15) 130 | -11/Scrapyard | Entered Materials 320 | -10/Materials | Build established: Mutant 579 | -10/Materials | Discovered new exit (range 5) 659 | -10/Materials | Discovered new exit (range 8) 696 | -10/Materials | Made a sacrifice at D.C.S.S. Altar Unit 697 | -10/Materials | Core integrity fell below 50% 768 | -10/Materials | Entered another Materials area 768 | -9/Materials | Evolved 2 slots: Propulsion x1, Utility x1 876 | -9/Materials | X0-1V1 released a cloud of subatomizers 1150 | -9/Materials | X0-1V1 added 0b10 threat records associated with you (minor) 1212 | -9/Materials | X0-1V1 sent you into danger 1254 | -9/Materials | Central database locked down 1389 | -9/Materials | Sterilization system engaged 1389 | -9/Materials | Non-combat units ordered to evacuate 1422 | -9/Materials | KI resistance permanently improved by X0-1V1 (+10%; -100 max core) 1489 | -9/Materials | Combat units ordered to evacuate 1522 | -9/Materials | Discovered new exit (range 16) 1613 | -9/Materials | X0-1V1 announced a LAN party 1689 | -9/Materials | Ambient heat levels rising (+10) 1820 | -9/Materials | Entered another Materials area 1820 | -8/Materials | Evolved 2 slots: Utility x1, Weapon x1 1974 | -8/Materials | Energy capacity permanently improved by X0-1V1 (+200; -100 max core) 2016 | -8/Materials | Heat dissipation permanently improved by X0-1V1 (+15; -75 max core) 2069 | -8/Materials | Central database locked down 2354 | -8/Materials | Destroyed 7 combat bots 2354 | -8/Materials | Discovered new exit (range 5) 2358 | -8/Materials | Lost 3 parts (2u1w) 2407 | -8/Materials | Build established: Tank 2777 | -8/Materials | X0-1V1 sent allied Chaos Knight (x1) 2961 | -8/Materials | X0-1V1 announced a LAN party 3253 | -8/Materials | Build established: Scavenger-Tank 3301 | -8/Materials | X0-1V1 enhanced Transport squad support 3308 | -8/Materials | X0-1V1 sent you to a vault 3323 | -8/Materials | Found Prototype Protection 3324 | -8/Materials | Identified Lgt. Regenerative Plating 3444 | -8/Materials | Core integrity fell below 50% 3515 | -8/Materials | Entered Factory 3515 | -7/Factory | Evolved 2 slots: Propulsion x2 3543 | -7/Factory | Identified exit to Lower Caves 3578 | -7/Factory | X0-1V1 activates XOMVISION 3664 | -7/Factory | X0-1V1 sent you to a vault 3685 | -7/Factory | Fabricated Xenon Bombardment Thruster? 3805 | -7/Factory | Discovered new exit (range 15) 3850 | -7/Factory | Entered another Factory area 3850 | -6/Factory | Accompanied by 3 allies 3850 | -6/Factory | Evolved 2 slots: Propulsion x1, Utility x1 4143 | -6/Factory | Build established: Tank 4226 | -6/Factory | X0-1V1 foreshadows a heat wave 4381 | -6/Factory | Ambient heat levels rising (+10) 4401 | -6/Factory | Discovered new exit (range 18) 4502 | -6/Factory | Cargo convoy interrupted 4534 | -6/Factory | Build established: Skirmisher 4580 | -6/Factory | X0-1V1 announced a LAN party 4647 | -6/Factory | Garrison activated, responded to threat 4656 | -6/Factory | Ambient heat levels rising (+10) 4842 | -6/Factory | Ambient heat levels falling (-10) 4861 | -6/Factory | X0-1V1 downgraded hostiles (x1) 4991 | -6/Factory | Build established: Gunner 5035 | -6/Factory | Discovered new exit (range 19) 5061 | -6/Factory | Ambient heat levels falling (-10) 5149 | -6/Factory | Identified exit to Lower Caves 5156 | -6/Factory | X0-1V1 revealed exit location to -6/Lower Caves 5524 | -6/Factory | Entered another Factory area 5524 | -5/Factory | Evolved 2 slots: Utility x1, Weapon x1 5649 | -5/Factory | X0-1V1 enhanced Transport squad support 5675 | -5/Factory | Discovered new exit (range 4) 5682 | -5/Factory | Identified exit to Upper Caves 5804 | -5/Factory | Build established: Scavenger-Gunner 6071 | -5/Factory | X0-1V1 vaporized surrounding terrain (radius 15) 6105 | -5/Factory | Destroyed 9 combat bots 6320 | -5/Factory | X0-1V1 upgraded hostiles (x1) 6387 | -5/Factory | X0-1V1 upgraded hostiles (x3) 6465 | -5/Factory | Found Prototype Launcher 6466 | -5/Factory | Identified Tesla Bomb Launcher 6471 | -5/Factory | Lost 6 parts (3n1u2w) 6473 | -5/Factory | Found Tesla Bomb Launcher 6724 | -5/Factory | First assault squad dispatched 6904 | -5/Factory | Discovered new exit (range 12) 6932 | -5/Factory | Identified exit to Factory 6932 | -5/Factory | Entered another Factory area 6932 | -4/Factory | Evolved 2 slots: Power x1, Utility x1 6950 | -4/Factory | X0-1V1 announced a LAN party 7307 | -4/Factory | Found Hvy. Reactive Plating 7432 | -4/Factory | First assault squad dispatched 7499 | -4/Factory | Destroyed 15 combat bots 7711 | -4/Factory | Identified exit to Research 7711 | -4/Factory | X0-1V1 revealed exit location to -3/Research 7854 | -4/Factory | Fabricated M-13 Machinist? 7930 | -4/Factory | Destroyed 7 combat bots 8027 | -4/Factory | X0-1V1 sent hostile Fireman (x2) 8105 | -4/Factory | Sucked down chute 8105 | -4/Factory | Entered Waste 8120 | -4/Waste | EMP discharged 8125 | -4/Waste | Spotted C-40 Crusher 8144 | -4/Waste | Spotted C-40 Crusher 8147 | -4/Waste | Spotted C-40 Crusher 8150 | -4/Waste | Spotted C-40 Crusher 8150 | -4/Waste | Spotted C-40 Crusher 8155 | -4/Waste | Spotted C-40 Crusher 8158 | -4/Waste | Discovered new exit (range 16) 8163 | -4/Waste | Identified exit to Factory 8163 | -4/Waste | Entered Factory 8215 | -4/Factory | Discovered exit to Research (range 16) 8218 | -4/Factory | Core integrity restored by X0-1V1 (+192) 8219 | -4/Factory | X0-1V1 revealed exit location to -3/Research 8236 | -4/Factory | X0-1V1 activates XOMVISION 8270 | -4/Factory | Repaired Enh. Force Rifle 8311 | -4/Factory | X0-1V1 downgraded hostiles (x1) 8319 | -4/Factory | Entered Research 8319 | -3/Research | Evolved 2 slots: Propulsion x2 8329 | -3/Research | Discovered new exit (range 2) 8330 | -3/Research | Identified exit to Research 8330 | -3/Research | Entered another Research area 8330 | -2/Research | Evolved 2 slots: Propulsion x1, Utility x1 8375 | -2/Research | Identified exit to Quarantine 8375 | -2/Research | X0-1V1 revealed exit location to -2/Quarantine 8449 | -2/Research | Repaired Adv. Actuator Array? 8486 | -2/Research | Found Chaos Jack 8507 | -2/Research | Build established: Sprinter 8535 | -2/Research | X0-1V1 enhanced Transport squad support 8536 | -2/Research | X0-1V1 mutated your Propulsion slot to Utility slot 8621 | -2/Research | Discovered new exit (range 16) 8638 | -2/Research | X0-1V1 sent hostile Mutant (x1) 8652 | -2/Research | Identified exit to Access 8652 | -2/Research | Entered Access 8652 | -1/Access | Evolved 2 slots: Utility x2 8740 | -1/Access | Energy Cycler disabled 8744 | -1/Access | Fabricated Exp. Core Analyzer? 8747 | -1/Access | Found Hvy. Scimitar of Distortion 8800 | -1/Access | Lost 5 parts (1p1n2u1w) 8980 | -1/Access | Identified exit to Surface 8980 | -1/Access | X0-1V1 revealed exit location to -0/Surface 9019 | -1/Access | X0-1V1 vaporized surrounding terrain (radius 19) 9051 | -1/Access | Build established: Scavenger-Sprinter 9088 | -1/Access | X0-1V1 sent hostile Savage (x2) 9090 | -1/Access | Identified exit to Command 9090 | -1/Access | X0-1V1 revealed exit location to -1/Command 9164 | -1/Access | Core integrity fell below 50% 9181 | -1/Access | Spotted B-99 Colossus 9181 | -1/Access | X0-1V1 whisked you away to safety 9187 | -1/Access | Spotted B-99 Colossus 9195 | -1/Access | Spotted B-99 Colossus 9197 | -1/Access | Core integrity fell below 20% 9203 | -1/Access | X0-1V1 redirected Transport squads to designated parking area 9227 | -1/Access | Lost 14 parts (1p7n5u1w) 9239 | *** | Escaped! Last Messages --------------- 09196_ Knocked back. 09196_ Slug penetrates Wall. 09196_ Penetrated by Slug. 09199_ Slug penetrates Door. 09199_ Penetrated by Slug. 09199_ Slug penetrates Wall. 09200_ Penetrated by Slug. 09200_ Slug penetrates Wall. 09202_ Triggered EM Surge Trap. 09202_ The floor emits a surge of raw power. 09202_ System corrupted (+4). 09203_ X0-1V1: "ALERT: Introduced new transport parking protocols." 09205_ X0-1V1 makes it rain matter. 09209_ System corrupted: Component data lost. 09227_ Connecting with Terminal... 09229_ ,ZJBKEK:WY8S